[Event "Titled Tuesday Blitz November 15 Early 2022"]
[White "Bethke, Richard"]
[Black "Izuzquiza Gonzalez, Javier"]
[WhiteFideId "12959243"]
[BlackFideId "3101029"]
[WhiteElo "2369"]
[BlackElo "2034"]
[Result "1-0"]
[Round "02"]
[TimeControl "180+1"]
[Date "2022.11.16"]
[WhiteClock "0:00:39"]
[BlackClock "0:00:19"]

1. e4 {[%clk 0:03:00]}  c5 {[%clk 0:02:59]} 2. Nf3 {[%clk 0:03:01]}  e6 {[%clk 0:02:59]} 3. d4 {[%clk 0:03:02]}  cxd4 {[%clk 0:02:59]} 4. Nxd4 {[%clk 0:03:03]}  a6 {[%clk 0:03:00]} 5. Bd3 {[%clk 0:03:01]}  Nf6 {[%clk 0:03:00]} 6. O-O {[%clk 0:02:56]}  Qc7 {[%clk 0:02:59]} 7. Qe2 {[%clk 0:02:56]}  d6 {[%clk 0:02:59]} 8. f4 {[%clk 0:02:56]}  Nbd7 {[%clk 0:02:48]} 9. c4 {[%clk 0:02:55]}  b6 {[%clk 0:02:42]} 10. Nc3 {[%clk 0:02:54]}  Bb7 {[%clk 0:02:39]} 11. Kh1 {[%clk 0:02:53]}  Be7 {[%clk 0:02:38]} 12. b3 {[%clk 0:02:52]}  Rc8 {[%clk 0:02:36]} 13. Bb2 {[%clk 0:02:39]}  Nc5 {[%clk 0:02:32]} 14. Rae1 {[%clk 0:02:37]}  O-O {[%clk 0:02:31]} 15. Bb1 {[%clk 0:02:35]}  Rfe8 {[%clk 0:02:31]} 16. e5 {[%clk 0:02:34]}  Nfd7 {[%clk 0:02:27]} 17. f5 {[%clk 0:02:25]}  dxe5 {[%clk 0:02:13]} 18. fxe6 {[%clk 0:02:22]}  fxe6 {[%clk 0:01:46]} 19. Bxh7+ {[%clk 0:02:14]}  Kxh7 {[%clk 0:01:37]} 20. Qh5+ {[%clk 0:02:15]}  Kg8 {[%clk 0:01:35]} 21. Qf7+ {[%clk 0:02:16]}  Kh8 {[%clk 0:01:28]} 22. Nf5 {[%clk 0:01:41]}  Bf6 {[%clk 0:01:18]} 23. Re3 {[%clk 0:01:30]}  Nf8 {[%clk 0:01:02]} 24. Rh3+ {[%clk 0:01:20]}  Nh7 {[%clk 0:01:01]} 25. Qg6 {[%clk 0:01:20]}  Kg8 {[%clk 0:00:57]} 26. Qxh7+ {[%clk 0:01:19]}  Kf8 {[%clk 0:00:58]} 27. Qh8+ {[%clk 0:00:51]}  Kf7 {[%clk 0:00:55]} 28. Qh5+ {[%clk 0:00:52]}  Kg8 {[%clk 0:00:46]} 29. Nh6+ {[%clk 0:00:51]}  Kf8 {[%clk 0:00:42]} 30. Qg6 {[%clk 0:00:42]}  Re7 {[%clk 0:00:19]} 31. Rxf6+ {[%clk 0:00:39]} 1-0


[Site "https://www.chess.com"]

[Event "Titled Tuesday Blitz November 15 Early 2022"]
[White "Bongo Akanga Ndjila, Barthelemy"]
[Black "Dudzinski, Pawel"]
[WhiteFideId "10609431"]
[BlackFideId "1117890"]
[WhiteElo "1768"]
[BlackElo "2086"]
[Result "0-1"]
[Round "02"]
[TimeControl "180+1"]
[Date "2022.11.16"]
[WhiteClock "0:00:15"]
[BlackClock "0:00:04"]

1. d4 {[%clk 0:03:00]}  d5 {[%clk 0:02:58]} 2. c4 {[%clk 0:02:59]}  c6 {[%clk 0:02:56]} 3. Nc3 {[%clk 0:02:59]}  e6 {[%clk 0:02:56]} 4. Nf3 {[%clk 0:02:59]}  f5 {[%clk 0:02:56]} 5. g3 {[%clk 0:02:55]}  Nf6 {[%clk 0:02:57]} 6. Bg2 {[%clk 0:02:56]}  Be7 {[%clk 0:02:57]} 7. O-O {[%clk 0:02:55]}  O-O {[%clk 0:02:58]} 8. b3 {[%clk 0:02:54]}  Bd7 {[%clk 0:02:58]} 9. Bb2 {[%clk 0:02:53]}  Be8 {[%clk 0:02:58]} 10. Ne5 {[%clk 0:02:52]}  Nbd7 {[%clk 0:02:58]} 11. Nxd7 {[%clk 0:02:46]}  Qxd7 {[%clk 0:02:56]} 12. f3 {[%clk 0:02:47]}  Bh5 {[%clk 0:02:50]} 13. Qd2 {[%clk 0:02:44]}  Rad8 {[%clk 0:02:48]} 14. Rad1 {[%clk 0:02:34]}  Kh8 {[%clk 0:02:27]} 15. c5 {[%clk 0:01:58]}  e5 {[%clk 0:02:12]} 16. Na4 {[%clk 0:01:48]}  e4 {[%clk 0:02:03]} 17. Qf4 {[%clk 0:01:37]}  Bf7 {[%clk 0:01:14]} 18. Bh3 {[%clk 0:01:32]}  g6 {[%clk 0:01:12]} 19. Bc1 {[%clk 0:01:22]}  Nh5 {[%clk 0:01:06]} 20. Qd2 {[%clk 0:01:20]}  Be6 {[%clk 0:00:57]} 21. Qc2 {[%clk 0:01:02]}  f4 {[%clk 0:00:51]} 22. g4 {[%clk 0:01:01]}  Ng7 {[%clk 0:00:41]} 23. Bg2 {[%clk 0:00:58]}  e3 {[%clk 0:00:37]} 24. h3 {[%clk 0:00:56]}  Bh4 {[%clk 0:00:31]} 25. Bb2 {[%clk 0:00:49]}  g5 {[%clk 0:00:31]} 26. b4 {[%clk 0:00:47]}  Bf7 {[%clk 0:00:29]} 27. Qc1 {[%clk 0:00:43]}  Bg6 {[%clk 0:00:28]} 28. Nc3 {[%clk 0:00:43]}  Rfe8 {[%clk 0:00:25]} 29. a4 {[%clk 0:00:41]}  Bf2+ {[%clk 0:00:24]} 30. Kh2 {[%clk 0:00:32]}  a6 {[%clk 0:00:23]} 31. Qa1 {[%clk 0:00:22]}  Ra8 {[%clk 0:00:21]} 32. Rc1 {[%clk 0:00:19]}  h5 {[%clk 0:00:21]} 33. Nd1 {[%clk 0:00:18]}  Bg3+ {[%clk 0:00:20]} 34. Kg1 {[%clk 0:00:18]}  Rf8 {[%clk 0:00:17]} 35. Bc3 {[%clk 0:00:15]}  Ne8 {[%clk 0:00:17]} 36. Be1 {[%clk 0:00:15]}  Bxe1 {[%clk 0:00:14]} 37. Rxe1 {[%clk 0:00:16]}  h4 {[%clk 0:00:11]} 38. Nc3 {[%clk 0:00:16]}  Qc7 {[%clk 0:00:11]} 39. Qb2 {[%clk 0:00:15]}  Ng7 {[%clk 0:00:11]} 40. b5 {[%clk 0:00:16]}  axb5 {[%clk 0:00:10]} 41. Nxb5 {[%clk 0:00:17]}  cxb5 {[%clk 0:00:09]} 42. axb5 {[%clk 0:00:18]}  Ne6 {[%clk 0:00:07]} 43. c6 {[%clk 0:00:17]}  b6 {[%clk 0:00:07]} 44. Qb4 {[%clk 0:00:16]}  Ra5 {[%clk 0:00:06]} 45. Rc3 {[%clk 0:00:16]}  Rfa8 {[%clk 0:00:06]} 46. Rec1 {[%clk 0:00:16]}  Ra4 {[%clk 0:00:06]} 47. Qb3 {[%clk 0:00:16]}  Rxd4 {[%clk 0:00:05]} 48. Qd1 {[%clk 0:00:17]}  Rxd1+ {[%clk 0:00:05]} 49. Rxd1 {[%clk 0:00:17]}  d4 {[%clk 0:00:06]} 50. Rc4 {[%clk 0:00:15]}  Ra5 {[%clk 0:00:05]} 51. Rb1 {[%clk 0:00:15]}  Bxb1 {[%clk 0:00:04]} 0-1


[Site "https://www.chess.com"]

[Event "Titled Tuesday Blitz November 15 Early 2022"]
[White "Bortnyk, Olexandr"]
[Black "Cardoso Cardoso, Jose Gabriel"]
[WhiteFideId "14120828"]
[BlackFideId "4430492"]
[WhiteElo "2723"]
[BlackElo "2484"]
[Result "1-0"]
[Round "02"]
[TimeControl "180+1"]
[Date "2022.11.15"]
[WhiteClock "0:00:03"]
[BlackClock "0:00:02"]

1. e4 {[%clk 0:02:58]}  c5 {[%clk 0:02:57]} 2. c3 {[%clk 0:02:58]}  d5 {[%clk 0:02:53]} 3. exd5 {[%clk 0:02:59]}  Qxd5 {[%clk 0:02:53]} 4. d4 {[%clk 0:02:59]}  Nf6 {[%clk 0:02:54]} 5. Be3 {[%clk 0:02:59]}  cxd4 {[%clk 0:02:49]} 6. cxd4 {[%clk 0:03:00]}  e6 {[%clk 0:02:50]} 7. Nc3 {[%clk 0:03:01]}  Bb4 {[%clk 0:02:50]} 8. Nf3 {[%clk 0:03:01]}  Qa5 {[%clk 0:02:47]} 9. Rc1 {[%clk 0:02:53]}  O-O {[%clk 0:02:34]} 10. Bd3 {[%clk 0:02:53]}  Nc6 {[%clk 0:02:25]} 11. O-O {[%clk 0:02:53]}  Rd8 {[%clk 0:02:24]} 12. Qe2 {[%clk 0:02:49]}  Bf8 {[%clk 0:01:49]} 13. a3 {[%clk 0:02:47]}  Ne7 {[%clk 0:01:45]} 14. b4 {[%clk 0:02:18]}  Qh5 {[%clk 0:01:42]} 15. h3 {[%clk 0:02:16]}  b6 {[%clk 0:01:33]} 16. Ne4 {[%clk 0:02:03]}  Bb7 {[%clk 0:01:19]} 17. Nxf6+ {[%clk 0:01:34]}  gxf6 {[%clk 0:01:20]} 18. Nd2 {[%clk 0:01:34]}  Qxe2 {[%clk 0:01:18]} 19. Bxe2 {[%clk 0:01:35]}  Nf5 {[%clk 0:01:19]} 20. Rc7 {[%clk 0:01:26]}  Rab8 {[%clk 0:01:07]} 21. Bf3 {[%clk 0:01:24]}  Ba6 {[%clk 0:00:58]} 22. Rfc1 {[%clk 0:01:14]}  Nxd4 {[%clk 0:00:57]} 23. Bxd4 {[%clk 0:01:06]}  Rxd4 {[%clk 0:00:58]} 24. Ne4 {[%clk 0:01:06]}  Bg7 {[%clk 0:00:56]} 25. Rxa7 {[%clk 0:01:06]}  Bd3 {[%clk 0:00:47]} 26. Ng3 {[%clk 0:01:05]}  Bg6 {[%clk 0:00:44]} 27. Rcc7 {[%clk 0:00:59]}  f5 {[%clk 0:00:42]} 28. Bh5 {[%clk 0:00:58]}  f4 {[%clk 0:00:36]} 29. Bxg6 {[%clk 0:00:57]}  hxg6 {[%clk 0:00:36]} 30. Rxf7 {[%clk 0:00:56]}  Be5 {[%clk 0:00:23]} 31. Nf1 {[%clk 0:00:56]}  Rc8 {[%clk 0:00:18]} 32. Rfe7 {[%clk 0:00:55]}  Rd6 {[%clk 0:00:10]} 33. a4 {[%clk 0:00:49]}  Kf8 {[%clk 0:00:07]} 34. Rf7+ {[%clk 0:00:47]}  Kg8 {[%clk 0:00:08]} 35. Rfb7 {[%clk 0:00:41]}  Rd1 {[%clk 0:00:05]} 36. Re7 {[%clk 0:00:41]}  Kf8 {[%clk 0:00:03]} 37. Rf7+ {[%clk 0:00:38]}  Kg8 {[%clk 0:00:04]} 38. Rfd7 {[%clk 0:00:38]}  Re1 {[%clk 0:00:03]} 39. a5 {[%clk 0:00:29]}  bxa5 {[%clk 0:00:03]} 40. bxa5 {[%clk 0:00:27]}  Kf8 {[%clk 0:00:04]} 41. Rab7 {[%clk 0:00:25]}  Ke8 {[%clk 0:00:04]} 42. Re7+ {[%clk 0:00:25]}  Kf8 {[%clk 0:00:04]} 43. Rf7+ {[%clk 0:00:24]}  Kg8 {[%clk 0:00:05]} 44. Rfd7 {[%clk 0:00:24]}  Kf8 {[%clk 0:00:05]} 45. a6 {[%clk 0:00:22]}  Ke8 {[%clk 0:00:03]} 46. Re7+ {[%clk 0:00:22]}  Kf8 {[%clk 0:00:03]} 47. Rf7+ {[%clk 0:00:22]}  Ke8 {[%clk 0:00:04]} 48. Rbe7+ {[%clk 0:00:22]}  Kd8 {[%clk 0:00:04]} 49. a7 {[%clk 0:00:22]}  Ra1 {[%clk 0:00:02]} 50. Rb7 {[%clk 0:00:22]}  Ke8 {[%clk 0:00:02]} 51. Rh7 {[%clk 0:00:15]}  g5 {[%clk 0:00:03]} 52. Rb8 {[%clk 0:00:08]}  Rxb8 {[%clk 0:00:02]} 53. axb8=Q+ {[%clk 0:00:09]}  Bxb8 {[%clk 0:00:03]} 54. Rh8+ {[%clk 0:00:09]}  Kf7 {[%clk 0:00:04]} 55. Rxb8 {[%clk 0:00:09]}  Kf6 {[%clk 0:00:05]} 56. Rb5 {[%clk 0:00:09]}  e5 {[%clk 0:00:05]} 57. g4 {[%clk 0:00:09]}  e4 {[%clk 0:00:04]} 58. Kg2 {[%clk 0:00:10]}  Ra2 {[%clk 0:00:05]} 59. Rf5+ {[%clk 0:00:09]}  Kg6 {[%clk 0:00:05]} 60. Re5 {[%clk 0:00:08]}  e3 {[%clk 0:00:05]} 61. Nxe3 {[%clk 0:00:08]}  fxe3 {[%clk 0:00:06]} 62. Re6+ {[%clk 0:00:07]}  Kf7 {[%clk 0:00:06]} 63. Rxe3 {[%clk 0:00:08]}  Kf6 {[%clk 0:00:07]} 64. Kg3 {[%clk 0:00:08]}  Rb2 {[%clk 0:00:06]} 65. f4 {[%clk 0:00:08]}  Rb4 {[%clk 0:00:05]} 66. fxg5+ {[%clk 0:00:09]}  Kxg5 {[%clk 0:00:05]} 67. h4+ {[%clk 0:00:08]}  Kf6 {[%clk 0:00:03]} 68. Rf3+ {[%clk 0:00:07]}  Kg6 {[%clk 0:00:04]} 69. h5+ {[%clk 0:00:07]}  Kg5 {[%clk 0:00:04]} 70. Rf5+ {[%clk 0:00:06]}  Kh6 {[%clk 0:00:05]} 71. Kh4 {[%clk 0:00:07]}  Rb1 {[%clk 0:00:05]} 72. Rf6+ {[%clk 0:00:07]}  Kg7 {[%clk 0:00:05]} 73. Kg5 {[%clk 0:00:06]}  Rb5+ {[%clk 0:00:05]} 74. Rf5 {[%clk 0:00:07]}  Rb6 {[%clk 0:00:05]} 75. Rc5 {[%clk 0:00:07]}  Rb7 {[%clk 0:00:05]} 76. h6+ {[%clk 0:00:07]}  Kh7 {[%clk 0:00:05]} 77. Kh5 {[%clk 0:00:08]}  Ra7 {[%clk 0:00:05]} 78. g5 {[%clk 0:00:08]}  Ra8 {[%clk 0:00:05]} 79. Rc6 {[%clk 0:00:05]}  Rb8 {[%clk 0:00:05]} 80. g6+ {[%clk 0:00:02]}  Kg8 {[%clk 0:00:05]} 81. Rc5 {[%clk 0:00:03]}  Ra8 {[%clk 0:00:05]} 82. Kg5 {[%clk 0:00:04]}  Rf8 {[%clk 0:00:05]} 83. Rf5 {[%clk 0:00:04]}  Rb8 {[%clk 0:00:05]} 84. Rd5 {[%clk 0:00:05]}  Ra8 {[%clk 0:00:04]} 85. Kf6 {[%clk 0:00:05]}  Ra6+ {[%clk 0:00:04]} 86. Kf5 {[%clk 0:00:04]}  Ra8 {[%clk 0:00:05]} 87. Rd6 {[%clk 0:00:03]}  Rf8+ {[%clk 0:00:02]} 88. Ke6 {[%clk 0:00:02]}  Ra8 {[%clk 0:00:03]} 89. Ke7 {[%clk 0:00:02]}  Ra7+ {[%clk 0:00:02]} 90. Rd7 {[%clk 0:00:03]} 1-0


[Site "https://www.chess.com"]

[Event "Titled Tuesday Blitz November 15 Early 2022"]
[White "Chernomordik, Pavel"]
[Black "Levine, David"]
[WhiteFideId "2804530"]
[BlackFideId "2011611"]
[WhiteElo "2192"]
[BlackElo "2148"]
[Result "1-0"]
[Round "02"]
[TimeControl "180+1"]
[Date "2022.11.16"]
[WhiteClock "0:01:27"]
[BlackClock "0:00:46"]

1. e4 {[%clk 0:03:00]}  e5 {[%clk 0:02:59]} 2. Nf3 {[%clk 0:03:00]}  Nc6 {[%clk 0:03:00]} 3. Bb5 {[%clk 0:03:00]}  a6 {[%clk 0:03:00]} 4. Ba4 {[%clk 0:03:00]}  Nf6 {[%clk 0:03:00]} 5. Qe2 {[%clk 0:03:00]}  b5 {[%clk 0:02:56]} 6. Bb3 {[%clk 0:03:00]}  Bc5 {[%clk 0:02:56]} 7. a4 {[%clk 0:02:59]}  Bb7 {[%clk 0:02:53]} 8. c3 {[%clk 0:02:56]}  d6 {[%clk 0:02:51]} 9. d3 {[%clk 0:02:54]}  h6 {[%clk 0:02:49]} 10. O-O {[%clk 0:02:52]}  O-O {[%clk 0:02:48]} 11. Rd1 {[%clk 0:02:46]}  Bb6 {[%clk 0:02:39]} 12. Na3 {[%clk 0:02:39]}  b4 {[%clk 0:02:36]} 13. Nc4 {[%clk 0:02:38]}  Re8 {[%clk 0:02:20]} 14. Nxb6 {[%clk 0:02:34]}  cxb6 {[%clk 0:02:19]} 15. Be3 {[%clk 0:02:28]}  Na5 {[%clk 0:01:49]} 16. Bc2 {[%clk 0:02:24]}  b3 {[%clk 0:01:47]} 17. Bb1 {[%clk 0:02:23]}  d5 {[%clk 0:01:47]} 18. Bc1 {[%clk 0:02:08]}  Qd6 {[%clk 0:01:46]} 19. Nh4 {[%clk 0:01:56]}  Bc8 {[%clk 0:01:33]} 20. Qf3 {[%clk 0:01:52]}  Bg4 {[%clk 0:01:28]} 21. Qg3 {[%clk 0:01:52]}  Bxd1 {[%clk 0:01:24]} 22. Nf5 {[%clk 0:01:52]}  Qf8 {[%clk 0:01:23]} 23. Bxh6 {[%clk 0:01:42]}  Bg4 {[%clk 0:01:15]} 24. Bxg7 {[%clk 0:01:40]}  Bxf5 {[%clk 0:00:56]} 25. Bxf8+ {[%clk 0:01:28]}  Kxf8 {[%clk 0:00:52]} 26. exf5 {[%clk 0:01:29]}  Ke7 {[%clk 0:00:46]} 27. Qxe5+ {[%clk 0:01:27]} 1-0


[Site "https://www.chess.com"]

[Event "Titled Tuesday Blitz November 15 Early 2022"]
[White "Chernov, Mikhail"]
[Black "Andreev, Eduard"]
[WhiteFideId "24143170"]
[BlackFideId "14103400"]
[WhiteElo "2113"]
[BlackElo "2368"]
[Result "0-1"]
[Round "02"]
[TimeControl "180+1"]
[Date "2022.11.16"]
[WhiteClock "0:00:08"]
[BlackClock "0:00:17"]

1. e4 {[%clk 0:03:00]}  c6 {[%clk 0:03:00]} 2. d4 {[%clk 0:02:59]}  d5 {[%clk 0:03:00]} 3. e5 {[%clk 0:02:56]}  c5 {[%clk 0:03:01]} 4. dxc5 {[%clk 0:02:56]}  e6 {[%clk 0:03:00]} 5. a3 {[%clk 0:02:54]}  Bxc5 {[%clk 0:03:00]} 6. Bd3 {[%clk 0:02:55]}  a5 {[%clk 0:02:58]} 7. Qg4 {[%clk 0:02:45]}  Ne7 {[%clk 0:02:50]} 8. Qxg7 {[%clk 0:02:38]}  Rg8 {[%clk 0:02:50]} 9. Qh6 {[%clk 0:02:36]}  Rxg2 {[%clk 0:02:49]} 10. Be3 {[%clk 0:02:09]}  Qb6 {[%clk 0:02:43]} 11. Bxc5 {[%clk 0:02:08]}  Qxc5 {[%clk 0:02:44]} 12. Qd2 {[%clk 0:02:04]}  Nbc6 {[%clk 0:02:40]} 13. Nf3 {[%clk 0:01:59]}  Bd7 {[%clk 0:02:35]} 14. Nc3 {[%clk 0:01:49]}  O-O-O {[%clk 0:02:33]} 15. Kf1 {[%clk 0:01:08]}  Rg4 {[%clk 0:02:20]} 16. Nb5 {[%clk 0:01:02]}  Kb8 {[%clk 0:02:12]} 17. Nd6 {[%clk 0:00:59]}  f5 {[%clk 0:02:09]} 18. Rg1 {[%clk 0:00:45]}  Rxg1+ {[%clk 0:01:57]} 19. Kxg1 {[%clk 0:00:46]}  Nxe5 {[%clk 0:01:55]} 20. Nxe5 {[%clk 0:00:38]}  Qxd6 {[%clk 0:01:54]} 21. Nf7 {[%clk 0:00:30]}  Rg8+ {[%clk 0:01:52]} 22. Kf1 {[%clk 0:00:31]}  Qxh2 {[%clk 0:01:51]} 23. Qxa5 {[%clk 0:00:27]}  Qh1+ {[%clk 0:01:40]} 24. Ke2 {[%clk 0:00:27]}  Qxa1 {[%clk 0:01:40]} 25. Ne5 {[%clk 0:00:18]}  Bc8 {[%clk 0:01:10]} 26. Qb4 {[%clk 0:00:17]}  Rg7 {[%clk 0:00:22]} 27. Nd7+ {[%clk 0:00:14]}  Bxd7 {[%clk 0:00:19]} 28. Qd6+ {[%clk 0:00:12]}  Kc8 {[%clk 0:00:18]} 29. Qe5 {[%clk 0:00:08]}  Rg8 {[%clk 0:00:17]} 30. Qc3+ {[%clk 0:00:08]}  Nc6 {[%clk 0:00:17]} 31. Qe5 {[%clk 0:00:08]}  Nxe5 {[%clk 0:00:17]} 0-1


[Site "https://www.chess.com"]

[Event "Titled Tuesday Blitz November 15 Early 2022"]
[White "Cruz, Jonathan"]
[Black "Vifleemskaia, Svetlana"]
[WhiteFideId "3802124"]
[BlackFideId "4129490"]
[WhiteElo "2406"]
[BlackElo "1929"]
[Result "1-0"]
[Round "02"]
[TimeControl "180+1"]
[Date "2022.11.16"]
[WhiteClock "0:00:34"]
[BlackClock "0:00:46"]

1. Nf3 {[%clk 0:02:54]}  Nf6 {[%clk 0:02:58]} 2. g3 {[%clk 0:02:53]}  b5 {[%clk 0:02:57]} 3. Bg2 {[%clk 0:02:53]}  Bb7 {[%clk 0:02:57]} 4. O-O {[%clk 0:02:54]}  e6 {[%clk 0:02:57]} 5. d3 {[%clk 0:02:54]}  Be7 {[%clk 0:02:57]} 6. e4 {[%clk 0:02:55]}  d6 {[%clk 0:02:56]} 7. Re1 {[%clk 0:02:54]}  Nbd7 {[%clk 0:02:56]} 8. b3 {[%clk 0:02:41]}  O-O {[%clk 0:02:56]} 9. Bb2 {[%clk 0:02:42]}  c5 {[%clk 0:02:56]} 10. a4 {[%clk 0:02:42]}  a6 {[%clk 0:02:55]} 11. Nbd2 {[%clk 0:02:40]}  Rc8 {[%clk 0:02:50]} 12. Nf1 {[%clk 0:02:38]}  Qc7 {[%clk 0:02:47]} 13. Ne3 {[%clk 0:02:35]}  Bc6 {[%clk 0:02:46]} 14. axb5 {[%clk 0:02:20]}  axb5 {[%clk 0:02:45]} 15. Nd2 {[%clk 0:01:49]}  Ra8 {[%clk 0:02:41]} 16. Qe2 {[%clk 0:01:48]}  Nb6 {[%clk 0:02:35]} 17. f4 {[%clk 0:01:45]}  Nfd7 {[%clk 0:02:30]} 18. Ng4 {[%clk 0:01:41]}  Rxa1 {[%clk 0:02:18]} 19. Rxa1 {[%clk 0:01:40]}  Ra8 {[%clk 0:02:17]} 20. Rb1 {[%clk 0:01:37]}  Ra2 {[%clk 0:02:14]} 21. Qf1 {[%clk 0:01:21]}  h5 {[%clk 0:02:02]} 22. Ne3 {[%clk 0:01:17]}  Bf6 {[%clk 0:02:01]} 23. Bxf6 {[%clk 0:01:16]}  Nxf6 {[%clk 0:02:01]} 24. Bf3 {[%clk 0:01:03]}  g6 {[%clk 0:01:42]} 25. Bd1 {[%clk 0:00:57]}  Kg7 {[%clk 0:01:39]} 26. h3 {[%clk 0:00:55]}  d5 {[%clk 0:01:20]} 27. e5 {[%clk 0:00:45]}  Nfd7 {[%clk 0:01:19]} 28. Ng2 {[%clk 0:00:42]}  d4 {[%clk 0:01:17]} 29. Rc1 {[%clk 0:00:38]}  Nd5 {[%clk 0:01:15]} 30. Ne4 {[%clk 0:00:35]}  Ne7 {[%clk 0:00:49]} 31. Nd6 {[%clk 0:00:34]}  Nf5 {[%clk 0:00:46]} 32. Ne8+ {[%clk 0:00:34]} 1-0


[Site "https://www.chess.com"]

[Event "Titled Tuesday Blitz November 15 Early 2022"]
[White "Darini, Pouria"]
[Black "Bok, Benjamin"]
[WhiteFideId "12502200"]
[BlackFideId "1017063"]
[WhiteElo "2483"]
[BlackElo "2658"]
[Result "1-0"]
[Round "02"]
[TimeControl "180+1"]
[Date "2022.11.15"]
[WhiteClock "0:00:12"]
[BlackClock "0:00:09"]

1. e4 {[%clk 0:03:00]}  c5 {[%clk 0:02:59]} 2. Nf3 {[%clk 0:03:01]}  d6 {[%clk 0:03:00]} 3. d4 {[%clk 0:03:01]}  cxd4 {[%clk 0:03:00]} 4. Nxd4 {[%clk 0:03:02]}  Nf6 {[%clk 0:03:01]} 5. Nc3 {[%clk 0:03:03]}  a6 {[%clk 0:03:02]} 6. a4 {[%clk 0:03:04]}  e6 {[%clk 0:03:00]} 7. Be3 {[%clk 0:03:00]}  Be7 {[%clk 0:03:00]} 8. a5 {[%clk 0:03:00]}  O-O {[%clk 0:03:00]} 9. Be2 {[%clk 0:03:00]}  Bd7 {[%clk 0:02:59]} 10. O-O {[%clk 0:02:59]}  Nc6 {[%clk 0:03:00]} 11. Nb3 {[%clk 0:02:57]}  Qc7 {[%clk 0:02:24]} 12. Bb6 {[%clk 0:02:51]}  Qb8 {[%clk 0:02:24]} 13. f4 {[%clk 0:02:52]}  Bd8 {[%clk 0:02:19]} 14. Be3 {[%clk 0:02:47]}  Be7 {[%clk 0:02:11]} 15. Bf3 {[%clk 0:02:43]}  Rc8 {[%clk 0:02:07]} 16. Kh1 {[%clk 0:02:37]}  Bf8 {[%clk 0:02:00]} 17. Qd2 {[%clk 0:02:31]}  Ne7 {[%clk 0:01:50]} 18. Rad1 {[%clk 0:02:07]}  Ng6 {[%clk 0:01:50]} 19. Nd4 {[%clk 0:01:52]}  Qc7 {[%clk 0:01:47]} 20. Nb3 {[%clk 0:01:48]}  Bc6 {[%clk 0:01:47]} 21. Qf2 {[%clk 0:01:40]}  h6 {[%clk 0:01:24]} 22. Bd4 {[%clk 0:01:37]}  Nxf4 {[%clk 0:01:12]} 23. Bxf6 {[%clk 0:01:17]}  gxf6 {[%clk 0:01:13]} 24. Qg3+ {[%clk 0:01:18]}  Ng6 {[%clk 0:01:13]} 25. Bh5 {[%clk 0:01:19]}  Bg7 {[%clk 0:00:59]} 26. Bxg6 {[%clk 0:01:19]}  fxg6 {[%clk 0:01:00]} 27. Qxg6 {[%clk 0:01:20]}  Qe7 {[%clk 0:00:58]} 28. Nd4 {[%clk 0:01:18]}  Be8 {[%clk 0:00:51]} 29. Qg4 {[%clk 0:01:18]}  Bd7 {[%clk 0:00:49]} 30. Rd3 {[%clk 0:01:11]}  Rc5 {[%clk 0:00:48]} 31. h4 {[%clk 0:00:55]}  Rxa5 {[%clk 0:00:33]} 32. Rg3 {[%clk 0:00:56]}  Kh8 {[%clk 0:00:29]} 33. b4 {[%clk 0:00:50]}  f5 {[%clk 0:00:18]} 34. Qxg7+ {[%clk 0:00:47]}  Qxg7 {[%clk 0:00:18]} 35. Rxg7 {[%clk 0:00:48]}  Kxg7 {[%clk 0:00:19]} 36. bxa5 {[%clk 0:00:48]}  Rc8 {[%clk 0:00:19]} 37. Nde2 {[%clk 0:00:37]}  fxe4 {[%clk 0:00:16]} 38. Nxe4 {[%clk 0:00:38]}  Rxc2 {[%clk 0:00:17]} 39. Nf4 {[%clk 0:00:39]}  d5 {[%clk 0:00:13]} 40. Nh5+ {[%clk 0:00:32]}  Kg6 {[%clk 0:00:12]} 41. Neg3 {[%clk 0:00:29]}  Bc6 {[%clk 0:00:04]} 42. Rf6+ {[%clk 0:00:30]}  Kh7 {[%clk 0:00:05]} 43. Rf7+ {[%clk 0:00:30]}  Kg8 {[%clk 0:00:04]} 44. Re7 {[%clk 0:00:19]}  d4 {[%clk 0:00:04]} 45. Nf4 {[%clk 0:00:17]}  e5 {[%clk 0:00:02]} 46. Rxe5 {[%clk 0:00:11]}  Kf7 {[%clk 0:00:03]} 47. Rf5+ {[%clk 0:00:07]}  Ke7 {[%clk 0:00:03]} 48. Rh5 {[%clk 0:00:03]}  Kd6 {[%clk 0:00:03]} 49. Rxh6+ {[%clk 0:00:03]}  Ke5 {[%clk 0:00:03]} 50. Nd3+ {[%clk 0:00:04]}  Kd5 {[%clk 0:00:02]} 51. Nb4+ {[%clk 0:00:04]}  Kc4 {[%clk 0:00:02]} 52. Nxc2 {[%clk 0:00:05]}  d3 {[%clk 0:00:03]} 53. Ne3+ {[%clk 0:00:06]}  Kd4 {[%clk 0:00:04]} 54. Ngf5+ {[%clk 0:00:06]}  Kc3 {[%clk 0:00:04]} 55. Rxc6+ {[%clk 0:00:07]}  bxc6 {[%clk 0:00:04]} 56. h5 {[%clk 0:00:08]}  d2 {[%clk 0:00:05]} 57. h6 {[%clk 0:00:08]}  Kd3 {[%clk 0:00:05]} 58. h7 {[%clk 0:00:09]}  c5 {[%clk 0:00:06]} 59. h8=Q {[%clk 0:00:09]}  c4 {[%clk 0:00:07]} 60. Qd4+ {[%clk 0:00:10]}  Ke2 {[%clk 0:00:08]} 61. Qxc4+ {[%clk 0:00:11]}  Ke1 {[%clk 0:00:09]} 62. Qf1# {[%clk 0:00:12]} 1-0


[Site "https://www.chess.com"]